bitfinex/quotes_SOLUSD_20251228
["timestamp","ask_amount","ask_price","bid_price","bid_amount"]
[1766895316418,0.72,124.3,124.28,3.03193587]
[1766895316589,0.68,124.32,124.29,3.45193587]
[1766895316908,0.68,124.32,124.31,3.03193587]
[1766895317498,0.68,124.32,124.3,3.45193587]
[1766895318111,0.68,124.32,124.3,0.42]
[1766895318331,0.68,124.32,124.3,3.45193587]
[1766895325814,0.68,124.32,124.3,3.03193587]
[1766895328720,0.68,124.32,124.29,8.46542367]
[1766895328923,0.68,124.32,124.29,11.49735954]
[1766895329799,0.68,124.32,124.3,3.03193587]
[1766895331122,0.68,124.32,124.29,8.46542367]
[1766895331324,0.68,124.32,124.3,3.03193587]
[1766895337528,0.68,124.32,124.29,0.42]
[1766895337708,0.68,124.32,124.3,3.03193587]
[1766895340127,0.68,124.32,124.29,3.45193587]
[1766895340723,0.68,124.32,124.28,8.04611613]
[1766895340724,3.03193587,124.32,124.28,3.03193587]
[1766895340935,0.68,124.31,124.28,3.03193587]
[1766895341929,0.68,124.31,124.29,3.03193587]
[1766895344613,0.68,124.31,124.28,3.03193587]
[1766895345415,0.68,124.31,124.28,3.45193587]
[1766895346039,0.68,124.31,124.29,3.03193587]
[1766895346237,0.68,124.31,124.28,0.42]
[1766895346537,0.68,124.31,124.29,3.03193587]
[1766895355140,0.68,124.31,124.3,3.03193587]
[1766895356042,0.68,124.31,124.29,3.03193587]
[1766895358138,0.68,124.31,124.28,8.04626442]
[1766895358346,0.68,124.31,124.28,11.78820029]
[1766895358546,0.68,124.31,124.29,3.03193587]
[1766895361549,8.04204134,124.35,124.29,11.78760927]
[1766895361750,0.72,124.33,124.3,3.03193587]
[1766895361936,0.72,124.33,124.3,2.65139669]
[1766895363546,0.72,124.33,124.31,1.94139669]
[1766895364046,0.72,124.33,124.3,2.65139669]
[1766895366051,0.72,124.33,124.3,0.71]
[1766895366432,0.72,124.33,124.3,2.65139669]
[1766895372955,0.72,124.33,124.3,0.71]
[1766895373156,0.72,124.33,124.3,2.65139669]
[1766895393775,0.72,124.33,124.3,1.94139669]
[1766895394073,0.71,124.35,124.32,2.61139669]
[1766895409086,0.71,124.35,124.32,0.67]
[1766895409289,0.71,124.35,124.32,2.61139669]
[1766895417070,2.65139669,124.35,124.32,2.61139669]
[1766895420991,0.71,124.35,124.32,2.61139669]
[1766895421489,2.65139669,124.35,124.32,2.61139669]
[1766895424000,3.7426305,124.35,124.32,3.7026305]
[1766895424494,0.71,124.35,124.32,3.7026305]
[1766895425191,3.0326305,124.34,124.3,8.76500915]
[1766895425396,0.72,124.32,124.29,80.3526305]
[1766895425596,0.72,124.32,124.3,0.72]
[1766895427497,0.72,124.32,124.3,3.7526305]
[1766895430914,0.72,124.32,124.31,3.0326305]
[1766895431606,0.72,124.35,124.31,3.0326305]
[1766895431902,0.72,124.35,124.32,3.7526305]
[1766895436012,0.72,124.35,124.32,0.72]
[1766895439114,3.7526305,124.35,124.32,0.72]
[1766895439318,0.66,124.34,124.32,0.72]
[1766895441417,0.66,124.34,124.31,3.7326305]
[1766895442014,3.6926305,124.34,124.31,0.7]
[1766895442717,0.66,124.34,124.31,0.7]
[1766895445419,0.66,124.33,124.3,11.77756941]
[1766895446017,0.66,124.33,124.3,8.74493891]
[1766895447414,0.66,124.33,124.3,0.7]
[1766895448817,0.66,124.33,124.3,3.7326305]
[1766895468040,0.66,124.33,124.3,0.7]
[1766895468337,0.66,124.33,124.3,3.7326305]
[1766895470944,3.7426305,124.32,124.28,3.7326305]
[1766895471138,0.71,124.31,124.28,3.7326305]
[1766895471442,0.71,124.34,124.3,3.7326305]
[1766895471743,0.71,124.34,124.31,3.0326305]
[1766895474541,0.71,124.34,124.3,0.7]
[1766895474725,0.71,124.34,124.31,3.0326305]
[1766895477130,0.71,124.34,124.3,3.7326305]
[1766895478350,0.71,124.34,124.31,3.0326305]
[1766895478547,0.71,124.34,124.31,3.7326305]
[1766895482435,0.71,124.34,124.31,0.7]
[1766895483356,0.71,124.34,124.31,3.7326305]
[1766895484457,0.71,124.36,124.33,0.7]
[1766895485144,0.71,124.35,124.33,0.7]
[1766895487160,0.71,124.35,124.33,2.64069999]
[1766895490760,0.71,124.35,124.33,0.7]
[1766895490977,0.71,124.37,124.33,0.7]
[1766895491260,0.71,124.37,124.33,2.64069999]
[1766895491261,0.71,124.36,124.33,2.64069999]
[1766895492644,0.71,124.37,124.34,2.64069999]
[1766895498449,0.71,124.37,124.35,1.94069999]
[1766895500069,0.71,124.37,124.34,2.64069999]
[1766895500674,22.73945441,124.39,124.33,8.04310902]
[1766895500859,0.66,124.38,124.35,2.65069999]
[1766895501568,0.66,124.38,124.35,0.71]
[1766895501871,0.66,124.38,124.35,2.65069999]
[1766895502252,15.36,124.39,124.36,2.65069999]
[1766895502453,17.30069999,124.39,124.36,2.65069999]
[1766895503155,0.66,124.38,124.36,2.65069999]
[1766895504075,0.66,124.38,124.36,0.71]
[1766895506965,2.60069999,124.39,124.36,0.71]
[1766895509491,0.66,124.39,124.36,0.71]
[1766895509782,0.66,124.38,124.36,0.71]
[1766895510368,2.60069999,124.38,124.36,0.71]
[1766895510563,0.66,124.37,124.34,2.65069999]
[1766895511087,2.60069999,124.37,124.34,0.71]
[1766895511994,0.66,124.37,124.34,2.65069999]
[1766895514878,0.66,124.39,124.36,2.65069999]
[1766895518490,0.66,124.4,124.37,2.65069999]
[1766895520089,15.36,124.41,124.38,2.65069999]
[1766895520870,0.66,124.41,124.38,2.65069999]
[1766895522301,2.60069999,124.41,124.38,2.65069999]
[1766895522594,9.97864156,124.41,124.38,0.71]
[1766895522805,0.66,124.39,124.36,2.65069999]
[1766895522977,2.60069999,124.39,124.36,2.65069999]
[1766895523176,0.66,124.38,124.36,0.71]
[1766895523385,0.66,124.38,124.35,2.65069999]
[1766895523785,0.66,124.38,124.36,0.71]
[1766895523998,2.60069999,124.39,124.36,0.71]
[1766895524209,0.66,124.39,124.36,2.65069999]
[1766895531705,2.60069999,124.39,124.34,8.04217427]
[1766895531878,0.72,124.37,124.34,2.62069999]
[1766895532078,0.72,124.37,124.35,0.68]
[1766895532786,0.72,124.37,124.34,2.62069999]
[1766895534904,0.72,124.36,124.31,0.68]
[1766895535109,0.72,124.35,124.32,2.62069999]
[1766895535407,0.72,124.35,124.33,2.62069999]
[1766895535599,0.72,124.35,124.33,0.68]
[1766895536695,2.66069999,124.36,124.33,0.68]
[1766895541307,2.66069999,124.35,124.33,0.68]
[1766895541483,0.72,124.33,124.29,1.94069999]
[1766895541690,2.66069999,124.33,124.3,0.68]
[1766895542092,2.66069999,124.33,124.3,2.62069999]
[1766895542284,0.72,124.33,124.3,2.62069999]
[1766895543907,0.72,124.33,124.31,0.68]
[1766895545511,0.72,124.34,124.31,0.68]
[1766895549018,8.76274754,124.34,124.31,0.68]
[1766895549218,0.72,124.34,124.31,0.68]
[1766895552926,3.75317476,124.34,124.31,0.68]
[1766895562127,3.03317476,124.34,124.31,0.68]
[1766895562427,0.66,124.33,124.31,0.68]
[1766895578846,0.66,124.33,124.3,3.73317476]
[1766895597162,0.66,124.33,124.3,3.75317476]
[1766895602263,0.66,124.33,124.3,0.72]
[1766895602469,0.66,124.33,124.3,3.75317476]
[1766895609975,0.14216157,124.32,124.3,2.66123611]
[1766895622983,0.14216157,124.34,124.32,0.66]
[1766895623190,0.69,124.35,124.32,2.60123611]
[1766895623891,0.69,124.35,124.33,1.94123611]
[1766895625186,0.14216157,124.34,124.33,1.94123611]
[1766895633772,0.14216157,124.34,124.32,2.60123611]
[1766895634095,0.69,124.34,124.31,1.94123611]
[1766895634491,0.69,124.34,124.31,2.60123611]
[1766895635098,0.69,124.34,124.31,10.6456234]
[1766895636796,0.69,124.34,124.31,2.60123611]
[1766895637701,0.69,124.34,124.32,1.94123611]
[1766895638097,0.69,124.34,124.31,0.66]
[1766895638299,0.69,124.34,124.32,1.94123611]
[1766895638999,0.69,124.34,124.31,2.60123611]
[1766895645721,0.69,124.34,124.32,1.94123611]
[1766895649417,0.69,124.34,124.31,0.66]
[1766895649616,0.69,124.34,124.32,1.94123611]
[1766895652925,0.69,124.34,124.31,2.60123611]
[1766895661636,0.69,124.34,124.32,1.94123611]
[1766895663039,0.69,124.34,124.31,2.60123611]
[1766895668944,0.69,124.34,124.32,1.94123611]
[1766895669944,0.69,124.34,124.32,3.03267692]
[1766895673843,0.69,124.34,124.32,3.75267692]
[1766895690355,0.69,124.34,124.32,0.72]
[1766895690654,0.69,124.34,124.29,8.04569957]
[1766895690954,0.69,124.34,124.31,3.75267692]
[1766895701965,0.69,124.34,124.31,0.72]
[1766895702156,0.69,124.34,124.31,3.75267692]
[1766895703083,0.69,124.34,124.29,8.7655343]
[1766895703084,8.73248687,124.34,124.29,8.7655343]
[1766895703272,0.68,124.33,124.29,3.75267692]
[1766895704183,0.68,124.33,124.29,11.79835074]
[1766895704355,0.68,124.33,124.3,3.03267692]
[1766895706279,0.68,124.33,124.3,3.70267692]
[1766895715692,0.68,124.33,124.31,3.03267692]
[1766895722498,0.68,124.33,124.3,0.67]
[1766895722794,0.68,124.33,124.31,3.03267692]
[1766895727904,0.68,124.33,124.32,3.03267692]
[1766895728106,0.71,124.36,124.32,3.75267692]
[1766895728282,0.71,124.35,124.32,3.75267692]
[1766895728792,0.71,124.35,124.32,0.72]
[1766895728994,0.71,124.35,124.33,3.03267692]
[1766895732006,0.71,124.35,124.32,0.72]
[1766895732191,0.71,124.35,124.33,1.94061031]
[1766895736906,0.71,124.35,124.32,2.66061031]
[1766895741612,0.71,124.35,124.32,0.72]
[1766895741811,0.71,124.35,124.32,2.66061031]
[1766895747318,0.71,124.35,124.32,0.72]
[1766895747815,0.71,124.35,124.32,2.66061031]
[1766895748617,2.65061031,124.35,124.32,0.72]
[1766895749096,0.72,124.34,124.32,0.72]
[1766895750918,0.72,124.34,124.32,2.66061031]
[1766895762831,0.72,124.34,124.32,0.72]
[1766895763016,0.72,124.34,124.32,2.66061031]
[1766895776142,0.72,124.34,124.3,37.44495434]
[1766895776315,0.72,124.34,124.31,2.60061031]
[1766895793948,0.72,124.34,124.31,3.69286301]
[1766895799751,0.72,124.34,124.31,11.73725651]
[1766895805063,0.72,124.34,124.32,3.03286301]
[1766895808974,0.72,124.34,124.31,11.73725651]
[1766895833913,0.72,124.34,124.32,3.03286301]
[1766895851130,8.041628,124.36,124.33,3.03286301]
[1766895851312,0.72,124.37,124.35,3.03286301]
[1766895853742,0.72,124.37,124.36,3.03286301]
[1766895854043,0.72,124.37,124.36,1.93962557]
[1766895858320,32.72023469,124.4,124.36,1.93962557]
[1766895858321,30.78060912,124.4,124.36,1.93962557]
[1766895858640,0.66,124.39,124.36,1.93962557]
[1766895863851,0.66,124.39,124.35,10.68141233]
[1766895866853,0.66,124.39,124.35,2.63962557]
[1766895869154,0.66,124.38,124.35,2.63962557]
[1766895881969,0.66,124.38,124.35,0.7]
[1766895882172,0.66,124.38,124.35,2.63962557]
[1766895893977,0.66,124.38,124.35,0.7]
[1766895902599,0.67,124.37,124.34,0.72]
[1766895902782,0.67,124.36,124.33,0.72]
[1766895903088,0.67,124.35,124.33,0.72]
[1766895904378,0.67,124.35,124.32,2.65962557]
[1766895904584,0.67,124.35,124.33,0.72]
[1766895904882,2.60962557,124.35,124.32,0.72]
[1766895905064,0.67,124.35,124.32,2.65962557]
[1766895906386,0.67,124.35,124.33,0.72]
[1766895909488,0.67,124.35,124.32,1.93962557]
[1766895909670,0.67,124.34,124.32,0.72]
[1766895910991,0.67,124.34,124.31,2.65962557]
[1766895912890,0.67,124.34,124.32,0.72]
[1766895914789,1.93962557,124.34,124.3,8.74491353]
[1766895915130,0.66,124.33,124.3,2.63962557]
[1766895915274,0.66,124.33,124.31,1.93962557]
[1766895916072,0.66,124.33,124.31,3.73309055]
[1766895921313,0.66,124.33,124.31,0.7]
[1766895921501,0.66,124.33,124.31,3.73309055]
[1766895923409,0.66,124.33,124.31,0.7]
[1766895923710,0.66,124.33,124.31,3.73309055]
[1766895924415,0.66,124.33,124.31,0.7]
[1766895924717,0.66,124.33,124.31,3.73309055]
[1766895924912,0.66,124.33,124.3,0.7]
[1766895925123,0.66,124.33,124.31,3.03309055]
[1766895925913,0.66,124.33,124.3,0.7]
[1766895926114,0.66,124.33,124.31,3.03309055]
[1766895926625,0.66,124.33,124.3,3.73309055]
[1766895927220,3.03309055,124.31,124.28,8.04078684]
[1766895927423,0.66,124.3,124.27,8.2469125]
[1766895927600,0.66,124.31,124.28,3.73309055]
[1766895927802,8.70078684,124.31,124.29,3.73309055]
[1766895927997,8.70078684,124.31,124.29,3.03309055]
[1766895928419,8.70078684,124.31,124.28,3.73309055]
[1766895929324,3.69309055,124.31,124.28,0.7]
[1766895929523,8.70078684,124.3,124.28,0.7]
[1766895931025,8.70078684,124.3,124.28,3.73309055]
[1766895931529,0.66,124.31,124.28,3.73309055]
[1766895931722,11.73701591,124.31,124.28,3.73309055]
[1766895931915,11.73701591,124.31,124.28,0.7]
[1766895932103,0.66,124.31,124.28,3.73309055]
[1766895932306,14.7,124.3,124.28,3.73309055]
[1766895932630,15.36,124.3,124.27,3.93309055]
[1766895933719,15.36,124.3,124.27,0.9]
[1766895933909,15.36,124.3,124.27,3.93309055]
[1766895935031,15.36,124.3,124.27,0.9]
[1766895935335,15.36,124.3,124.27,3.93309055]
[1766895936027,0.66,124.29,124.27,0.9]
[1766895936234,15.36,124.3,124.27,3.93309055]
[1766895937111,0.66,124.29,124.27,3.93309055]
[1766895937438,15.36,124.3,124.27,3.93309055]
[1766895937730,14.7,124.3,124.27,3.93309055]
[1766895937933,15.36,124.3,124.27,0.9]
[1766895938110,15.36,124.3,124.27,3.93309055]
[1766895938622,15.36,124.3,124.27,0.9]
[1766895938936,15.36,124.3,124.27,3.93309055]
[1766895939535,15.36,124.3,124.27,0.9]
[1766895939731,14.7,124.3,124.27,3.93309055]
[1766895939938,15.36,124.3,124.27,3.93309055]
[1766895940147,15.36,124.3,124.27,0.9]
[1766895940331,15.36,124.3,124.27,3.93309055]
[1766895941741,0.66,124.3,124.27,0.9]
[1766895941933,0.66,124.3,124.27,3.93309055]
[1766895942542,0.66,124.3,124.27,0.9]
[1766895942735,0.66,124.3,124.27,3.93309055]
[1766895943242,0.66,124.3,124.27,0.9]
[1766895943443,0.66,124.3,124.27,3.93309055]
[1766895943736,0.66,124.3,124.27,0.9]
[1766895943942,0.66,124.3,124.27,3.93309055]
[1766895944342,0.66,124.3,124.27,0.9]
[1766895944542,0.66,124.3,124.27,3.93309055]
[1766895945344,0.66,124.3,124.27,8.94695702]
[1766895945541,0.66,124.3,124.27,11.98004757]
[1766895945844,0.66,124.3,124.27,8.94695702]
[1766895946021,0.66,124.3,124.27,11.98004757]
[1766895946216,0.66,124.3,124.27,8.94695702]
[1766895946440,0.66,124.3,124.27,11.98004757]
[1766895948146,0.66,124.3,124.27,3.93309055]
[1766895960457,0.66,124.3,124.27,11.9800353]
[1766895962270,3.03309055,124.29,124.27,0.2]
[1766895962571,0.71,124.29,124.27,3.23309055]
[1766895963267,0.71,124.29,124.27,3.90309055]
[1766895963659,0.71,124.31,124.28,3.03309055]
[1766895963861,0.71,124.3,124.27,11.94992427]
[1766895966451,0.71,124.3,124.28,3.03309055]
[1766895967475,0.71,124.3,124.27,11.94992427]
[1766895972942,0.71,124.3,124.27,3.90309055]
[1766895974669,3.03309055,124.31,124.27,3.90309055]
[1766895974670,17.73309055,124.34,124.27,3.23309055]
[1766895974880,0.66,124.33,124.3,3.75309055]
[1766895975049,0.66,124.32,124.3,3.03309055]
[1766895975249,0.66,124.32,124.3,3.75309055]
[1766895976470,0.66,124.33,124.3,3.75309055]
[1766895978072,0.66,124.33,124.31,1.94127804]
[1766895980458,0.66,124.33,124.32,1.94127804]
[1766895983981,0.66,124.33,124.31,1.94127804]
[1766895985268,0.66,124.33,124.3,10.70632094]
[1766895985575,0.66,124.33,124.31,2.66127804]
[1766895985778,0.66,124.35,124.32,0.72]
[1766895986081,0.66,124.35,124.32,2.66127804]
[1766895986392,0.66,124.35,124.33,1.94127804]
[1766895986768,0.66,124.36,124.33,2.66127804]
[1766895986968,14.7,124.38,124.34,2.66127804]
[1766895987169,0.66,124.37,124.35,1.94127804]
[1766895989289,0.66,124.37,124.34,2.66127804]
[1766895991873,0.66,124.38,124.35,2.66127804]
[1766895992775,2.60127804,124.38,124.35,0.72]
[1766895993382,0.66,124.37,124.35,0.72]
[1766895993588,0.66,124.37,124.34,10.70370313]
[1766895994490,0.66,124.39,124.35,0.72]
[1766895994667,0.66,124.38,124.35,2.66127804]
[1766895997284,0.66,124.38,124.36,0.72]
[1766895997472,0.66,124.39,124.36,2.66127804]
[1766895998990,0.66,124.42,124.38,0.72]
[1766895999192,0.66,124.41,124.38,0.72]
[1766896000091,0.66,124.41,124.38,2.66127804]
[1766896008297,0.71,124.42,124.39,0.67]
[1766896009275,0.71,124.42,124.38,1.94127804]
[1766896009475,0.71,124.42,124.38,2.61127804]
[1766896011092,0.71,124.42,124.39,2.61127804]
[1766896013998,9.97877744,124.42,124.38,1.94127804]
[1766896014204,0.71,124.41,124.38,2.61127804]
[1766896021506,0.71,124.41,124.38,0.67]
[1766896021907,0.71,124.41,124.38,2.61127804]
[1766896024703,0.71,124.41,124.39,1.94127804]
[1766896030298,0.71,124.41,124.38,2.61127804]
[1766896033630,0.71,124.41,124.38,0.67]
[1766896033822,0.71,124.41,124.38,2.61127804]
[1766896040022,0.71,124.41,124.38,3.69925654]
[1766896041032,0.71,124.41,124.39,0.68]
[1766896044140,0.71,124.41,124.38,0.68]
[1766896044340,0.71,124.41,124.38,3.70925654]
[1766896046724,0.92,124.43,124.4,3.70925654]
[1766896047041,0.92,124.43,124.41,3.02925654]
[1766896051049,0.2,124.43,124.41,3.02925654]
[1766896051253,0.2,124.43,124.42,3.02925654]
[1766896051850,0.2,124.43,124.41,0.68]
[1766896052148,0.92,124.43,124.41,3.70925654]
[1766896061969,0.2,124.43,124.41,3.70925654]
[1766896063141,0.92,124.43,124.41,3.70925654]
[1766896064970,0.2,124.43,124.41,3.70925654]
[1766896066746,0.87,124.43,124.41,3.70925654]
[1766896068161,0.87,124.43,124.41,0.68]
[1766896068348,0.87,124.43,124.41,3.70925654]
[1766896069448,0.2,124.44,124.42,0.67]
[1766896070666,0.2,124.44,124.42,3.69925654]
[1766896074679,0.87,124.44,124.42,3.69925654]
[1766896075170,0.87,124.44,124.42,0.67]
[1766896076965,0.87,124.44,124.42,3.69925654]
[1766896083577,0.87,124.44,124.41,0.68]
[1766896083779,0.87,124.44,124.42,3.02925654]
[1766896088372,0.72,124.43,124.4,8.7183652]
[1766896088564,0.72,124.43,124.41,3.02925654]
[1766896088766,0.72,124.43,124.4,11.74762174]
[1766896089064,0.72,124.43,124.41,3.70925654]
[1766896091385,0.72,124.43,124.41,0.68]
[1766896092985,0.72,124.43,124.41,3.70925654]
[1766896102078,0.72,124.43,124.41,2.61796639]
[1766896109399,0.72,124.43,124.41,0.68]
[1766896111998,0.72,124.43,124.41,2.61796639]
[1766896120509,0.72,124.43,124.42,1.93796639]
[1766896120903,0.92,124.44,124.42,1.93796639]
[1766896121078,0.92,124.44,124.41,2.61796639]
[1766896122682,0.72,124.43,124.41,2.61796639]
[1766896127500,0.72,124.43,124.41,0.68]
[1766896127826,0.72,124.43,124.41,2.61796639]
[1766896141515,0.72,124.43,124.38,61.9]
[1766896141720,0.72,124.42,124.38,2.61796639]
[1766896142016,0.72,124.41,124.39,1.93796639]
[1766896149532,0.72,124.41,124.39,9.9771947]
[1766896153631,0.72,124.41,124.38,9.97761486]
[1766896154437,2.65796639,124.41,124.38,9.97761486]
[1766896154636,0.72,124.4,124.38,9.97761486]
[1766896156637,0.72,124.4,124.38,8.03964847]
[1766896156836,0.72,124.4,124.38,9.97761486]
[1766896159233,0.72,124.4,124.39,1.93796639]
[1766896159445,0.72,124.4,124.38,8.03964847]
[1766896159631,0.72,124.4,124.39,1.93796639]
[1766896162551,0.72,124.4,124.38,8.03964847]
[1766896162869,0.72,124.4,124.39,1.93796639]
[1766896163947,0.72,124.4,124.39,3.02932483]
[1766896168649,0.72,124.4,124.38,8.03964847]
[1766896168941,0.72,124.4,124.38,11.0689733]
[1766896174462,0.72,124.4,124.38,8.03964847]
[1766896174745,0.72,124.4,124.38,11.0689733]
[1766896177052,0.72,124.42,124.39,3.02932483]
[1766896178759,0.72,124.42,124.39,11.06795321]
[1766896179056,0.72,124.42,124.4,3.73932483]
[1766896179735,0.72,124.42,124.4,3.02932483]
[1766896179936,0.72,124.42,124.4,11.06758526]
[1766896198663,0.7,124.41,124.39,0.71]
[1766896198861,0.7,124.41,124.39,3.73932483]
[1766896199263,0.7,124.41,124.39,11.77850429]
[1766896200684,0.7,124.42,124.39,11.77850429]
[1766896202271,0.7,124.42,124.39,8.74917946]
[1766896202445,0.7,124.42,124.39,11.77850429]
[1766896208974,0.7,124.43,124.41,3.02932483]
[1766896209174,0.7,124.43,124.4,3.73932483]
[1766896210981,0.7,124.43,124.4,0.71]
[1766896211181,0.7,124.43,124.4,3.73932483]
[1766896215884,0.7,124.43,124.41,0.68]
[1766896216481,0.7,124.43,124.4,3.70932483]
[1766896216982,0.7,124.43,124.41,3.02932483]
[1766896219586,0.7,124.43,124.41,3.70932483]
[1766896221988,0.7,124.43,124.41,3.02932483]
[1766896225997,0.7,124.43,124.41,1.93812111]
[1766896227496,0.7,124.43,124.4,0.68]
[1766896227797,0.7,124.43,124.41,1.93812111]
[1766896236730,0.2,124.44,124.41,1.93812111]
[1766896236901,0.9,124.44,124.41,2.61812111]
[1766896237703,0.2,124.44,124.41,2.61812111]
[1766896238001,0.7,124.43,124.41,2.61812111]
[1766896239927,0.7,124.43,124.41,1.93812111]
[1766896241217,1.93812111,124.43,124.39,0.68]
[1766896241425,0.7,124.42,124.4,1.93812111]
[1766896242726,2.63812111,124.43,124.4,2.61812111]
[1766896242925,2.63812111,124.43,124.4,0.68]
[1766896244228,1.93812111,124.43,124.4,0.68]
[1766896244402,0.7,124.42,124.4,0.68]
[1766896245326,2.58812111,124.43,124.4,0.68]
[1766896245830,0.65,124.43,124.4,0.68]
[1766896248832,0.65,124.43,124.4,8.71855907]
[1766896254050,0.65,124.43,124.4,10.65668018]
[1766896257850,0.65,124.43,124.4,10.64668018]
[1766896263460,0.65,124.43,124.39,10.64725339]
[1766896264761,0.65,124.43,124.39,8.70913228]
[1766896264955,0.65,124.43,124.39,10.64725339]
[1766896272070,0.65,124.43,124.39,8.70913228]
[1766896272269,0.65,124.43,124.39,10.64725339]
[1766896273171,0.65,124.43,124.39,9.97725339]
[1766896273373,0.65,124.43,124.4,0.67]
[1766896275575,0.65,124.43,124.39,9.97725339]
[1766896275777,0.65,124.43,124.39,10.65725339]
[1766896276976,0.65,124.43,124.4,1.93812111]
[1766896280294,0.65,124.43,124.41,1.93812111]
[1766896281486,0.2,124.44,124.41,1.93812111]
[1766896281872,0.9,124.44,124.41,2.61812111]
[1766896282274,0.7,124.41,124.35,0.68]
[1766896282572,0.7,124.35,124.31,2.61812111]
[1766896282766,0.7,124.34,124.31,2.61812111]
[1766896282967,0.7,124.34,124.32,1.93812111]
[1766896283268,15.38,124.36,124.33,2.61812111]
[1766896283468,15.38,124.36,124.34,1.93812111]
[1766896283772,0.7,124.36,124.34,1.93812111]
[1766896284675,3.22100092,124.37,124.35,2.61812111]
[1766896284880,0.7,124.38,124.36,1.93812111]
[1766896286666,0.7,124.38,124.35,2.61812111]
[1766896286995,0.7,124.38,124.35,0.68]
[1766896287199,0.7,124.38,124.35,2.61812111]
[1766896287995,0.7,124.38,124.35,3.71082398]
[1766896290177,3.73082398,124.38,124.35,0.68]
[1766896291382,0.7,124.37,124.35,0.68]
[1766896298209,0.7,124.37,124.35,3.71082398]
[1766896298711,0.7,124.37,124.35,0.68]
[1766896300819,8.03875,124.4,124.37,0.68]
[1766896300820,0.7,124.4,124.37,0.68]
[1766896300990,0.7,124.4,124.38,3.03082398]
[1766896301314,0.7,124.4,124.37,3.71082398]
[1766896303399,0.7,124.4,124.37,0.68]
[1766896303615,0.7,124.4,124.37,3.71082398]
[1766896304907,0.7,124.4,124.37,0.68]
[1766896305109,0.7,124.4,124.38,3.03082398]
[1766896314721,0.66,124.42,124.39,0.67]
[1766896314924,0.66,124.41,124.38,3.70082398]
[1766896318506,0.66,124.41,124.38,3.03082398]
[1766896320625,0.66,124.41,124.37,8.71052105]
[1766896320626,0.66,124.41,124.37,11.74134503]
[1766896322635,3.03082398,124.41,124.37,11.74134503]
[1766896322943,0.66,124.4,124.38,3.03082398]
[1766896323116,0.66,124.4,124.37,11.74134503]
[1766896330038,0.66,124.4,124.38,3.03082398]
[1766896338949,0.69,124.39,124.36,8.71114114]
[1766896339151,0.69,124.39,124.36,11.74196512]
[1766896341354,0.69,124.39,124.37,3.03082398]
[1766896349966,0.69,124.39,124.37,1.93930641]
[1766896359769,0.69,124.39,124.36,10.65044755]
[1766896362064,0.69,124.39,124.35,8.04151769]
[1766896362272,0.69,124.38,124.35,10.6510785]
[1766896367173,0.69,124.38,124.35,8.71177209]
[1766896368973,0.69,124.38,124.35,10.6510785]
[1766896386602,0.69,124.38,124.35,8.71177209]
[1766896389089,1.93930641,124.38,124.35,0.67]
[1766896389296,0.67,124.37,124.34,2.63930641]
[1766896390597,0.67,124.37,124.34,0.7]
[1766896390801,0.67,124.37,124.34,2.63930641]
[1766896391406,0.67,124.37,124.34,10.68176547]
[1766896393793,0.67,124.37,124.34,8.74245906]